bitfinex-derivatives/quotes_BTCF0:USTF0_20241125
["timestamp","ask_amount","ask_price","bid_price","bid_amount"]
[1732556833499,9.388e-05,95090.0,95089.0,0.053384]
[1732556833698,9.388e-05,95090.0,95089.0,0.225984]
[1732556833903,9.388e-05,95090.0,95089.0,0.1734]
[1732556834406,0.1,95100.0,95099.0,0.052579]
[1732556834806,0.1,95100.0,95099.0,0.053379]
[1732556835706,0.1,95100.0,95099.0,0.0008]
[1732556836008,0.00013111,95106.0,95099.0,0.0008]
[1732556836205,0.0026,95128.0,95105.0,0.3608]
[1732556836206,0.052565,95125.0,95105.0,0.3608]
[1732556836399,0.052565,95125.0,95110.0,0.14369178]
[1732556836601,0.052565,95125.0,95124.0,0.0008]
[1732556836797,0.36237778,95130.0,95124.0,0.0008]
[1732556837107,0.36237778,95130.0,95116.0,0.413369]
[1732556837108,0.36237778,95130.0,95129.0,0.0008]
[1732556837314,0.36250459,95130.0,95129.0,0.0008]
[1732556837812,0.0026,95158.0,95137.0,0.052558]
[1732556838015,0.36188001,95159.0,95145.0,0.3608]
[1732556838016,0.05255,95152.0,95145.0,0.3608]
[1732556838213,0.36184001,95159.0,95157.0,0.0008]
[1732556838214,0.413346,95159.0,95157.0,0.0008]
[1732556838706,0.413346,95159.0,95158.0,0.0008]
[1732556838913,0.052561,95132.0,95130.0,0.0026]
[1732556839108,0.3608,95146.0,95125.0,0.19235535]
[1732556839300,0.0004,95131.0,95125.0,0.02015535]
[1732556839504,0.052563,95128.0,95125.0,0.00157673]
[1732556839715,0.0004,95127.0,95125.0,0.00157673]
[1732556840006,0.0004,95127.0,95125.0,0.36237673]
[1732556840211,0.0004,95127.0,95125.0,0.41494073]
[1732556840813,0.0004,95127.0,95125.0,0.36237673]
[1732556840999,0.0004,95127.0,95126.0,0.17225909]
[1732556842008,0.0004,95127.0,95126.0,9.909e-05]
[1732556842214,0.0004,95127.0,95126.0,0.17225909]
[1732556842811,0.0026,95157.0,95126.0,0.78761909]
[1732556843001,0.3608,95159.0,95147.0,0.14369178]
[1732556843209,0.3608,95159.0,95147.0,0.31581178]
[1732556843210,0.052552,95149.0,95147.0,0.31581178]
[1732556843411,0.052549,95153.0,95147.0,0.17212]
[1732556843803,0.052549,95153.0,95152.0,0.0004]
[1732556844412,0.3608,95159.0,95147.0,0.17212]
[1732556844413,0.00016642,95150.0,95147.0,0.17212]
[1732556844714,0.0004,95148.0,95147.0,0.17212]
[1732556844908,0.052552,95147.0,95145.0,0.3608]
[1732556845104,0.0004,95148.0,95145.0,0.3608]
[1732556845311,0.00016642,95150.0,95145.0,0.3608]
[1732556845312,0.0004,95146.0,95145.0,0.3608]
[1732556845822,0.052539,95171.0,95154.0,0.052548]
[1732556846002,0.052539,95171.0,95145.0,0.3608]
[1732556846003,0.052539,95171.0,95157.0,0.3608]
[1732556846310,0.052542,95166.0,95157.0,0.53292]
[1732556846510,0.052542,95166.0,95157.0,0.3608]
[1732556846814,0.3608,95181.0,95159.0,0.052546]
[1732556846815,0.052539,95173.0,95159.0,0.052546]
[1732556847016,0.3608,95181.0,95159.0,0.052546]
[1732556847215,0.05254,95170.0,95157.0,0.53348]
[1732556847413,0.05254,95170.0,95164.0,0.052543]
[1732556848108,8.481e-05,95171.0,95157.0,0.38081528]
[1732556848413,0.3608,95159.0,95136.0,0.3608]
[1732556848613,0.052556,95140.0,95136.0,0.3608]
[1732556848811,0.052556,95140.0,95137.0,0.01891707]
[1732556849114,0.052555,95143.0,95137.0,0.01891707]
[1732556849311,0.3608,95150.0,95137.0,0.01891707]
[1732556849312,0.052551,95149.0,95137.0,0.01891707]
[1732556849612,0.3608,95150.0,95140.0,0.17208]
[1732556849916,0.3608,95150.0,95148.0,0.052551]
[1732556850120,0.3608,95159.0,95152.0,0.052549]
[1732556850315,0.052546,95158.0,95153.0,0.17208]
[1732556850504,0.3608,95159.0,95145.0,0.3608]
[1732556850705,0.3608,95159.0,95146.0,0.17208]
[1732556850915,0.052556,95140.0,95139.0,0.00157644]
[1732556851212,0.413356,95140.0,95139.0,0.00157644]
[1732556851411,0.3608,95140.0,95139.0,0.00157644]
[1732556852623,0.413356,95140.0,95139.0,0.00157644]
[1732556853315,1.200756,95140.0,95139.0,4.4e-07]
[1732556853513,0.052563,95127.0,95121.0,0.04215154]
[1732556853714,0.052566,95122.0,95121.0,0.04215154]
[1732556854117,0.052566,95122.0,95121.0,0.03696407]
[1732556854421,0.052577,95102.0,95101.0,0.00157736]
[1732556854626,0.05258,95097.0,95090.0,0.052584]
[1732556854817,0.32686338,95102.0,95089.0,8.656e-05]
[1732556854818,0.052581,95096.0,95089.0,8.656e-05]
[1732556855123,0.32686338,95102.0,95092.0,0.052583]
[1732556855313,0.32686338,95102.0,95089.0,8.656e-05]
[1732556855314,0.052582,95095.0,95089.0,8.656e-05]
[1732556856420,0.32686338,95102.0,95089.0,8.656e-05]
[1732556856912,0.32686338,95102.0,95090.0,0.15986088]
[1732556857116,0.17212,95110.0,95099.0,0.3608]
[1732556857314,0.052575,95107.0,95105.0,0.052575]
[1732556858323,0.3608,95113.0,95099.0,0.3608]
[1732556858512,9.62e-05,95119.0,95117.0,0.052569]
[1732556858721,9.62e-05,95119.0,95118.0,0.3608]
[1732556858910,9.62e-05,95119.0,95118.0,0.71843079]
[1732556859222,0.3608,95137.0,95119.0,0.052567]
[1732556859530,0.3608,95137.0,95136.0,0.052559]
[1732556859825,0.3608,95137.0,95136.0,0.0688017]
[1732556860019,0.3608,95137.0,95136.0,0.052559]
[1732556860325,0.3608,95137.0,95136.0,0.06867437]
[1732556860818,0.3608,95137.0,95136.0,0.09485102]
[1732556861022,0.3608,95137.0,95136.0,0.04229202]
[1732556861225,0.8482,95137.0,95136.0,0.01611537]
[1732556861420,0.8482,95137.0,95117.0,0.3998]
[1732556861421,0.052568,95118.0,95117.0,0.3998]
[1732556861616,0.052568,95118.0,95117.0,0.42600283]
[1732556861811,0.052568,95118.0,95117.0,0.3998]
[1732556862122,0.3608,95123.0,95117.0,0.3998]
[1732556862324,0.413366,95123.0,95120.0,0.052567]
[1732556862522,0.413366,95123.0,95117.0,0.4677]
[1732556862523,0.3608,95123.0,95117.0,0.4677]
[1732556862718,0.052568,95119.0,95117.0,0.4677]
[1732556863623,0.052568,95119.0,95117.0,0.654532]
[1732556863821,0.052568,95119.0,95117.0,0.4677]
[1732556864120,0.052568,95119.0,95117.0,0.0679]
[1732556864329,0.052568,95119.0,95117.0,0.254732]
[1732556864623,0.052568,95119.0,95117.0,0.0679]
[1732556865123,0.3608,95123.0,95117.0,0.0679]
[1732556865313,0.052565,95125.0,95121.0,0.18825766]
[1732556865629,0.052565,95125.0,95124.0,0.052565]
[1732556865822,0.17212,95129.0,95125.0,0.052564]
[1732556866014,0.07177935,95130.0,95127.0,0.052563]
[1732556866216,0.02104765,95132.0,95127.0,0.052563]
[1732556866516,0.02104765,95132.0,95117.0,0.0679]
[1732556866517,0.052567,95120.0,95118.0,0.18825766]
[1732556866716,0.3608,95127.0,95117.0,0.0679]
[1732556866922,0.3608,95127.0,95119.0,0.24087904]
[1732556867116,0.052566,95123.0,95119.0,0.24087904]
[1732556867428,0.052567,95121.0,95119.0,0.052567]
[1732556867630,0.052564,95126.0,95117.0,0.25621204]
[1732556867813,0.052564,95126.0,95123.0,0.052566]
[1732556868320,0.052564,95126.0,95124.0,0.052565]
[1732556868522,0.3608,95127.0,95123.0,0.18831204]
[1732556868718,0.3608,95127.0,95117.0,0.31700934]
[1732556868719,0.052565,95124.0,95120.0,0.30167634]
[1732556868918,0.052565,95124.0,95120.0,0.052567]
[1732556869120,0.052565,95124.0,95121.0,0.052567]
[1732556869818,0.052567,95121.0,95118.0,0.24910934]
[1732556870020,0.3608,95127.0,95122.0,0.052566]
[1732556870320,0.3608,95127.0,95117.0,0.0679]
[1732556870321,0.413363,95127.0,95125.0,0.18829513]
[1732556870528,0.3608,95127.0,95125.0,0.052564]
[1732556871028,0.3608,95127.0,95126.0,0.18828682]
[1732556871326,0.3608,95127.0,95117.0,0.25618682]
[1732556871532,0.052568,95119.0,95117.0,0.0679]
[1732556871823,0.052568,95119.0,95117.0,0.25618682]
[1732556872232,0.052568,95119.0,95117.0,0.30875582]
[1732556872418,0.052568,95119.0,95117.0,0.120469]
[1732556872619,0.052565,95124.0,95123.0,0.052566]
[1732556872942,0.3608,95127.0,95117.0,0.0679]
[1732556873123,0.19288765,95136.0,95122.0,0.3608]
[1732556873324,0.00157715,95139.0,95122.0,0.3608]
[1732556873524,0.052559,95136.0,95133.0,0.05256]
[1732556873726,0.052559,95135.0,95133.0,0.05256]
[1732556874230,0.052559,95135.0,95126.0,0.18828682]
[1732556874527,0.052559,95135.0,95130.0,0.052562]
[1732556874727,0.052559,95135.0,95126.0,0.18828682]
[1732556874921,0.00157715,95139.0,95135.0,0.052559]
[1732556875532,0.00157715,95139.0,95130.0,0.18828682]
[1732556875533,0.05256,95134.0,95130.0,0.18828682]
[1732556876028,0.00157715,95139.0,95130.0,0.18828682]
[1732556876225,0.052562,95130.0,95128.0,0.18828682]
[1732556876426,0.052563,95128.0,95127.0,0.18842121]
[1732556876619,0.00157715,95139.0,95124.0,0.18842121]
[1732556876929,0.052562,95130.0,95128.0,0.052563]
[1732556877123,0.3608,95129.0,95122.0,0.18842121]
[1732556877322,0.3608,95129.0,95120.0,0.18842121]
[1732556877631,0.052565,95125.0,95124.0,0.052565]
[1732556878531,0.413358,95138.0,95135.0,0.052559]
[1732556878728,0.3608,95138.0,95125.0,0.18842121]
[1732556879025,0.05256,95133.0,95124.0,0.18842121]
[1732556879228,0.3608,95138.0,95124.0,0.18842121]
[1732556879426,0.3608,95138.0,95123.0,0.18842121]
[1732556879626,0.3608,95138.0,95137.0,0.052558]
[1732556881827,0.3608,95138.0,95137.0,0.24097921]
[1732556882219,0.3608,95138.0,95137.0,0.24133144]
[1732556882529,0.00157715,95139.0,95138.0,0.052557]
[1732556883230,9.091e-05,95144.0,95143.0,0.052555]
[1732556883834,9.091e-05,95144.0,95143.0,0.41347244]
[1732556884030,0.04175154,95158.0,95157.0,0.052547]
[1732556884223,0.04175154,95158.0,95157.0,0.224387]
[1732556885732,0.09429754,95158.0,95157.0,0.052547]
[1732556885925,0.04175154,95158.0,95157.0,0.052547]
[1732556886134,0.36089661,95172.0,95171.0,0.052539]
[1732556886429,0.36089661,95172.0,95171.0,0.224739]
[1732556887128,0.00157604,95199.0,95171.0,1.24804]
[1732556887329,0.1,95200.0,95198.0,0.052524]
[1732556887530,0.3608,95221.0,95199.0,0.1718]
[1732556887737,0.3608,95221.0,95218.0,0.052513]
[1732556888032,0.3608,95221.0,95220.0,0.0004]
[1732556888232,0.36092947,95221.0,95220.0,0.0004]
[1732556889937,0.36092947,95221.0,95220.0,0.0014]
[1732556890124,1e-08,95221.0,95220.0,0.3622]
[1732556890727,1e-08,95221.0,95220.0,0.67724]
[1732556891125,0.3634,95257.0,95220.0,1.37704]
[1732556891334,0.052494,95253.0,95247.0,0.14328847]
[1732556891533,0.413292,95257.0,95256.0,0.0004]
[1732556892334,0.41338488,95257.0,95256.0,0.0004]
[1732556892837,0.72830488,95257.0,95256.0,0.0004]
[1732556893045,0.72830488,95257.0,95256.0,0.0014]
[1732556893226,0.052503,95236.0,95235.0,0.3608]
[1732556893737,0.0004,95236.0,95235.0,0.3608]
[1732556894237,0.0004,95236.0,95234.0,0.052504]
[1732556894238,0.0004,95236.0,95227.0,0.00157503]
[1732556894440,0.3608,95228.0,95227.0,0.00157503]
[1732556894737,0.0004,95228.0,95227.0,0.00157503]
[1732556895735,0.0004,95228.0,95227.0,0.0209687]
[1732556896230,0.0004,95228.0,95227.0,0.0219687]
[1732556896439,0.0004,95228.0,95227.0,0.1934087]
[1732556897531,0.0004,95228.0,95227.0,0.5084487]
[1732556897733,0.3608,95246.0,95236.0,0.052509]
[1732556897929,0.3608,95256.0,95238.0,0.3608]
[1732556898127,0.3608,95256.0,95246.0,0.14328847]
[1732556898337,0.3608,95256.0,95254.0,0.052498]
[1732556898538,0.3608,95256.0,95255.0,0.17144]
[1732556899136,9.288e-05,95257.0,95256.0,0.052498]
[1732556899336,9.288e-05,95257.0,95256.0,0.413298]
[1732556899537,9.288e-05,95257.0,95256.0,0.413698]
[1732556900247,9.288e-05,95257.0,95256.0,0.0004]
[1732556902141,9.288e-05,95257.0,95256.0,0.1728]
[1732556903637,9.288e-05,95257.0,95256.0,0.0014]
[1732556903843,9.288e-05,95257.0,95256.0,0.0012]
[1732556906646,0.0726,95267.0,95263.0,0.052493]
[1732556906839,0.0726,95267.0,95265.0,0.052492]
[1732556907143,0.38184765,95280.0,95256.0,0.0012]
[1732556907342,0.38184765,95280.0,95261.0,0.052494]
[1732556907545,0.38184765,95280.0,95269.0,0.0004]
[1732556907843,0.36092693,95270.0,95269.0,0.0004]
[1732556908448,0.14028479,95270.0,95269.0,0.0004]
[1732556908944,0.14028479,95270.0,95269.0,0.0014]
[1732556909147,0.00012693,95270.0,95269.0,0.0014]
[1732556910250,0.00012693,95270.0,95269.0,0.02018301]
[1732556912145,0.00012693,95270.0,95269.0,0.38098301]
[1732556912642,0.07509831,95296.0,95269.0,0.38098301]
[1732556912643,0.05405066,95296.0,95292.0,0.052478]
[1732556912843,0.05405066,95296.0,95294.0,0.052476]
[1732556912844,0.00157466,95296.0,95294.0,0.052476]
[1732556913250,0.00157466,95296.0,95295.0,0.0004]
[1732556913548,0.00167923,95296.0,95295.0,0.0004]
[1732556913754,0.00167923,95296.0,95295.0,0.17172]
[1732556913941,0.0665,95326.0,95296.0,0.3148]
[1732556914248,0.052461,95323.0,95321.0,0.052461]
[1732556914457,0.052461,95323.0,95312.0,0.3608]
[1732556914458,0.00157464,95327.0,95313.0,0.052466]
[1732556914640,0.00157464,95327.0,95325.0,0.052459]
[1732556914841,0.00157464,95327.0,95326.0,0.17132]
[1732556915244,0.00010932,95337.0,95322.0,0.3608]
[1732556915452,0.3608,95333.0,95321.0,0.001]
[1732556915745,0.052461,95322.0,95321.0,0.001]
[1732556916246,0.17132,95330.0,95326.0,0.001]
[1732556916247,0.052458,95327.0,95326.0,0.001]
[1732556916638,0.052458,95327.0,95311.0,0.3608]
[1732556916639,0.052467,95312.0,95311.0,0.3608]
[1732556916839,0.052467,95312.0,95294.0,0.3608]
[1732556916840,0.052472,95302.0,95285.0,0.3608]
[1732556917043,0.052467,95311.0,95275.0,0.3608]
[1732556917044,0.052479,95289.0,95275.0,0.3608]
[1732556917346,0.052487,95276.0,95275.0,0.3608]
[1732556917849,0.052887,95276.0,95275.0,0.3608]
[1732556918360,0.05301011,95276.0,95275.0,0.3608]
[1732556918541,0.05301011,95276.0,95275.0,0.54946934]
[1732556918742,0.00052311,95276.0,95275.0,0.3618]
[1732556919243,0.00052311,95276.0,95275.0,0.3608]
[1732556919448,0.00052311,95276.0,95275.0,0.3618]
[1732556920858,0.00052311,95276.0,95275.0,0.3608]
[1732556921055,0.00109913,95276.0,95275.0,0.3618]
[1732556922451,0.00109913,95276.0,95275.0,0.001]
[1732556922452,0.31597913,95276.0,95275.0,0.001]
[1732556922959,0.00109913,95276.0,95275.0,0.001]
[1732556925261,0.00109913,95276.0,95275.0,0.041]
[1732556929357,0.0009942,95276.0,95275.0,0.22913476]
[1732556929565,0.0009942,95276.0,95275.0,0.041]
[1732556930554,0.0009942,95276.0,95275.0,0.22918343]
[1732556930759,0.0009942,95276.0,95275.0,0.041]
[1732556931867,0.0009942,95276.0,95275.0,0.229206]
[1732556932166,0.0009942,95276.0,95275.0,0.041]
[1732556933060,0.0009942,95276.0,95275.0,0.22921474]
[1732556933364,0.0009942,95276.0,95275.0,0.041]
[1732556934072,0.0009942,95276.0,95275.0,0.4018]
[1732556934262,0.0009942,95276.0,95275.0,0.42044135]
[1732556935560,0.0009942,95276.0,95275.0,0.59152135]
[1732556935761,0.0009942,95276.0,95275.0,0.84256781]
[1732556935973,0.0009942,95276.0,95275.0,0.59152135]
[1732556936265,0.052477,95294.0,95292.0,0.052477]
[1732556936670,0.052477,95294.0,95293.0,0.0004]
[1732556937773,0.052477,95294.0,95291.0,0.052478]
[1732556937962,0.02159767,95293.0,95292.0,0.052477]
[1732556938159,0.02159767,95293.0,95292.0,0.001]
[1732556938666,8.401e-05,95296.0,95294.0,0.052476]
[1732556938972,8.401e-05,95296.0,95295.0,0.0004]
[1732556939162,0.02368371,95296.0,95295.0,0.0004]
[1732556940074,0.02368371,95296.0,95295.0,0.01916217]
[1732556940264,8.401e-05,95296.0,95295.0,0.01916217]
[1732556940773,0.02368371,95296.0,95295.0,0.07163817]
[1732556940972,0.07615971,95296.0,95295.0,0.01916217]
[1732556941169,0.07615971,95296.0,95295.0,0.0004]
[1732556941469,0.07615971,95296.0,95295.0,0.0014]
[1732556941874,0.07615971,95296.0,95295.0,0.0414]
[1732556942267,0.02368371,95296.0,95286.0,0.17104]
[1732556942469,0.052479,95290.0,95286.0,0.223521]
[1732556942663,0.05248,95287.0,95286.0,0.17104]
[1732556943062,0.3608,95294.0,95285.0,0.01942499]
[1732556943360,0.3608,95294.0,95278.0,0.052485]
[1732556943361,0.052484,95280.0,95278.0,0.052485]
[1732556943567,0.052487,95275.0,95274.0,0.00056]
[1732556943774,0.05249,95270.0,95269.0,0.0004]
[1732556944163,0.05309,95270.0,95269.0,0.0004]
[1732556944566,0.052491,95268.0,95249.0,0.00157476]
[1732556944763,0.052501,95250.0,95249.0,0.00157476]
[1732556945261,0.052503,95246.0,95237.0,0.17104]
[1732556945466,0.4369027,95246.0,95229.0,0.3608]
[1732556945666,0.7529596,95246.0,95230.0,0.14948676]
[1732556945867,0.052511,95232.0,95230.0,0.14948676]
[1732556946275,0.0235997,95245.0,95230.0,0.20199876]
[1732556946276,0.00140001,95231.0,95230.0,0.20199876]
[1732556946473,0.00140001,95231.0,95230.0,0.37307876]
[1732556947275,0.00140001,95231.0,95230.0,0.20199876]
[1732556947474,0.05391101,95231.0,95230.0,0.14948676]
[1732556947669,0.05391101,95231.0,95230.0,0.09036634]
[1732556948470,0.31644001,95231.0,95208.0,0.3608]
[1732556948670,0.3608,95223.0,95208.0,0.3608]
[1732556948875,0.00140001,95209.0,95208.0,0.3608]
[1732556949470,0.00140001,95209.0,95208.0,0.37994311]
[1732556949778,0.00140001,95209.0,95208.0,0.3609351]
[1732556949977,0.00140001,95209.0,95208.0,0.0001351]
[1732556950370,0.00140001,95209.0,95208.0,0.0011351]
[1732556950576,0.069,95239.0,95208.0,0.0011351]
[1732556950787,0.052508,95237.0,95229.0,0.14284187]
[1732556951079,0.121507,95239.0,95238.0,0.0004]
[1732556951273,0.684,95239.0,95208.0,0.01997208]
[1732556951475,0.052523,95210.0,95208.0,0.01997208]
[1732556951675,0.0004,95209.0,95208.0,0.01997208]
[1732556952773,0.0004,95209.0,95208.0,0.0011351]
[1732556953082,0.3612,95209.0,95208.0,0.0011351]
[1732556953273,0.67628,95209.0,95208.0,0.0011351]
[1732556953469,0.74368,95209.0,95208.0,0.0011351]
[1732556953671,0.052528,95201.0,95200.0,0.1]
[1732556953875,0.53192,95201.0,95168.0,0.052546]
[1732556954078,0.3608,95182.0,95166.0,0.17116]
[1732556954280,0.0004,95170.0,95166.0,0.223707]
[1732556954582,0.0004,95170.0,95169.0,0.07356647]
[1732556954787,0.0004,95170.0,95169.0,0.00167184]
[1732556954983,0.3612,95170.0,95169.0,0.00167184]
[1732556955281,0.67644,95170.0,95169.0,0.00167184]
[1732556955585,0.97644,95170.0,95141.0,0.4276]
[1732556955784,0.052555,95152.0,95141.0,0.4276]
[1732556956081,0.0004,95142.0,95141.0,0.3608]
[1732556956470,0.0004,95142.0,95141.0,0.36091765]
[1732556957383,0.0004,95142.0,95141.0,0.36191765]
[1732556959579,0.052558,95147.0,95141.0,0.36191765]
[1732556959978,0.3608,95154.0,95146.0,0.0004]
[1732556960178,0.052558,95147.0,95146.0,0.0004]
[1732556960486,0.052558,95146.0,95141.0,0.36191765]
[1732556960681,0.052556,95151.0,95143.0,0.05256]
[1732556960895,0.052558,95147.0,95141.0,0.36191765]
[1732556961180,0.052556,95151.0,95143.0,0.05256]
[1732556961374,0.052556,95150.0,95145.0,0.052558]
[1732556961781,0.052556,95150.0,95141.0,0.00111765]
[1732556961983,0.3608,95154.0,95141.0,0.00111765]
[1732556962184,0.0004,95142.0,95141.0,0.05367865]
[1732556962384,0.3608,95160.0,95141.0,0.53287765]
[1732556962587,0.3608,95160.0,95153.0,0.3608]
[1732556962783,0.3608,95160.0,95159.0,0.00040001]
[1732556963287,0.052549,95163.0,95159.0,0.00040001]
[1732556963476,0.3608,95169.0,95159.0,0.00040001]
[1732556963787,0.3608,95169.0,95168.0,0.00040001]
[1732556965776,0.3608,95169.0,95168.0,0.00140001]
[1732556969974,0.05256,95142.0,95141.0,0.00011765]
[1732556970177,0.20625523,95142.0,95141.0,0.00011765]
[1732556970388,0.20665523,95142.0,95141.0,0.00011765]
[1732556970983,0.52197523,95142.0,95141.0,0.00011765]
[1732556971882,0.46941523,95142.0,95100.0,0.24284187]
[1732556972083,0.052577,95112.0,95106.0,0.05258]
[1732556972284,0.3608,95130.0,95108.0,0.052579]
[1732556972285,0.0004,95110.0,95108.0,0.052579]
[1732556972479,0.0004,95110.0,95109.0,0.37960801]
[1732556972893,0.0004,95110.0,95109.0,0.36092076]
[1732556973385,0.0004,95110.0,95109.0,0.36192076]
[1732556974383,0.0004,95110.0,95109.0,0.72272076]
[1732556975789,0.17104,95135.0,95109.0,1.03816076]
[1732556975992,0.17104,95135.0,95122.0,0.3608]
[1732556976181,0.14284187,95140.0,95124.0,0.05257]
[1732556976182,0.052569,95127.0,95124.0,0.05257]
[1732556976378,0.17104,95136.0,95122.0,0.3608]
[1732556976584,0.05257,95126.0,95124.0,0.05257]
[1732556976783,0.052571,95124.0,95122.0,0.3608]
[1732556976984,0.052571,95123.0,95122.0,0.38014456]
[1732556978986,0.052568,95129.0,95126.0,0.052569]
[1732556979190,0.052564,95137.0,95122.0,0.38014456]
[1732556979380,0.3608,95149.0,95129.0,0.052567]
[1732556979381,0.052566,95133.0,95129.0,0.052567]
[1732556980091,0.052566,95133.0,95128.0,0.0004]
[1732556980092,0.01880992,95146.0,95133.0,0.052565]
[1732556980287,0.01880992,95146.0,95128.0,0.0004]
[1732556980288,0.052565,95135.0,95128.0,0.0004]
[1732556980594,0.02104737,95140.0,95130.0,0.052567]
[1732556980989,0.02104737,95140.0,95128.0,0.0004]
[1732556981389,0.052567,95130.0,95128.0,0.0004]
[1732556981591,0.02104737,95140.0,95128.0,0.0004]
[1732556981792,0.052567,95131.0,95130.0,0.18798256]
[1732556981993,0.052567,95131.0,95130.0,0.18898256]
[1732556982392,0.052567,95131.0,95130.0,0.001]
[1732556982582,0.02104737,95140.0,95129.0,0.25104646]
[1732556982788,0.052564,95135.0,95129.0,0.25104646]
[1732556982989,0.052564,95135.0,95133.0,0.18817451]
[1732556983383,0.02104737,95140.0,95131.0,0.25104646]
[1732556983583,0.02104737,95140.0,95135.0,0.18833867]
[1732556983894,0.052563,95138.0,95136.0,0.1883375]
[1732556984089,0.052563,95137.0,95136.0,0.1883375]
[1732556984291,0.052563,95137.0,95134.0,0.25104646]
[1732556984695,0.00157742,95143.0,95138.0,0.052562]
[1732556984997,0.00157742,95143.0,95138.0,0.18843178]
[1732556985188,0.052562,95139.0,95138.0,0.18843178]
[1732556985384,0.052563,95137.0,95136.0,0.001]
[1732556985798,0.052963,95137.0,95136.0,0.001]
[1732556986092,0.052564,95136.0,95135.0,0.18846461]
[1732556986293,0.052564,95135.0,95134.0,0.18846461]
[1732556986695,0.052964,95135.0,95134.0,0.18846461]
[1732556986893,0.31576,95135.0,95134.0,0.18846523]
[1732556987095,0.31576,95135.0,95133.0,0.18846523]
[1732556987297,0.413365,95134.0,95133.0,0.18846523]
[1732556987506,0.3612,95134.0,95132.0,0.18846523]
[1732556987803,0.3608,95134.0,95133.0,0.052565]
[1732556987996,0.3608,95134.0,95133.0,0.18845829]
[1732556988195,0.3608,95134.0,95130.0,0.25104646]
[1732556988397,0.3608,95134.0,95133.0,0.053565]
[1732556988791,0.413365,95134.0,95133.0,0.18945783]
[1732556988993,0.413365,95134.0,95133.0,0.001]
[1732556989298,0.728725,95134.0,95133.0,0.001]
[1732556989504,0.052568,95129.0,95128.0,0.0004]
[1732556990201,0.052968,95129.0,95128.0,0.0004]
[1732556990705,0.052968,95129.0,95128.0,0.0014]
[1732556990893,0.052968,95129.0,95128.0,0.001]
[1732556991208,0.052968,95129.0,95109.0,0.41349976]
[1732556991209,0.052578,95110.0,95109.0,0.36092076]
[1732556991402,0.223338,95110.0,95109.0,0.36092076]
[1732556991791,0.223738,95110.0,95109.0,0.00012076]
[1732556992204,0.0004,95110.0,95109.0,0.05269976]
[1732556992497,0.0004,95110.0,95109.0,0.05369976]
[1732556993097,0.052978,95110.0,95109.0,0.05369976]
[1732556993305,0.052978,95110.0,95109.0,0.00112076]
[1732556994097,0.052978,95110.0,95109.0,0.00012076]
[1732556995691,0.05221881,95110.0,95109.0,0.00012076]
[1732556996606,0.05221881,95110.0,95109.0,0.18858207]
[1732556996793,0.07221881,95110.0,95109.0,0.18858207]
[1732556997102,0.02,95110.0,95109.0,0.00012076]
[1732556997295,0.02,95110.0,95109.0,0.05269976]
[1732556998297,0.072578,95110.0,95109.0,0.00012076]
[1732556999212,0.02,95110.0,95109.0,0.05269976]
[1732556999805,0.072578,95110.0,95109.0,0.00012076]
[1732557000000,0.02,95110.0,95109.0,0.05269976]
[1732557000608,0.02,95110.0,95109.0,0.00012076]
[1732557000609,0.072578,95110.0,95109.0,0.00012076]
[1732557000903,0.02,95110.0,95109.0,0.05269976]
[1732557001799,0.02,95110.0,95109.0,0.41349976]
[1732557002492,0.072578,95110.0,95109.0,0.36092076]
[1732557002703,0.02,95110.0,95109.0,0.36092076]
[1732557003102,0.072578,95110.0,95109.0,0.00012076]
[1732557003304,0.243378,95110.0,95109.0,0.00012076]
[1732557004405,0.02,95110.0,95109.0,0.00012076]
[1732557005407,0.02,95110.0,95109.0,0.01913592]
[1732557005714,9.888e-05,95129.0,95109.0,0.69537592]
[1732557005902,9.888e-05,95129.0,95127.0,0.052568]
[1732557006102,0.0026,95151.0,95127.0,0.052568]
[1732557006103,0.24862164,95161.0,95143.0,0.05256]
[1732557006405,0.24862164,95184.0,95160.0,0.3612]
[1732557006608,0.30075067,95194.0,95189.0,0.052535]
[1732557006808,0.36309618,95206.0,95189.0,0.052535]
[1732557006809,0.31077705,95200.0,95193.0,0.3608]
[1732557007109,0.27969935,95212.0,95199.0,0.0004]
[1732557007300,7.722e-05,95213.0,95211.0,0.3608]
[1732557007608,7.722e-05,95213.0,95212.0,0.223722]
[1732557007809,7.722e-05,95213.0,95212.0,0.16453907]
[1732557008206,0.05259822,95213.0,95212.0,0.0004]
[1732557008804,0.36767822,95213.0,95212.0,0.0004]
[1732557008999,0.36767822,95213.0,95212.0,0.00034899]
[1732557009206,0.052531,95197.0,95195.0,7.576e-05]
[1732557009499,0.05254,95180.0,95163.0,0.052548]
[1732557009699,0.0004,95196.0,95175.0,0.3608]
[1732557009899,0.0004,95196.0,95188.0,0.3608]
[1732557010099,0.052532,95194.0,95188.0,0.3608]
[1732557011206,0.413329,95199.0,95188.0,0.3608]
[1732557011404,0.3608,95199.0,95188.0,0.413335]
[1732557011604,0.3608,95199.0,95188.0,0.3608]
[1732557012621,0.413329,95199.0,95188.0,0.3608]
[1732557013113,0.3608,95199.0,95188.0,0.3608]
[1732557013312,0.3608,95199.0,95182.0,0.00013012]
[1732557013313,0.052538,95183.0,95182.0,0.00013012]
[1732557013810,0.368138,95183.0,95182.0,0.00013012]
[1732557014013,0.052938,95183.0,95182.0,0.00013012]
[1732557015206,0.0004,95183.0,95182.0,0.00013012]
[1732557015608,0.0004,95183.0,95182.0,0.05266812]
[1732557016311,0.0004,95183.0,95182.0,0.43936812]
[1732557016611,0.0004,95183.0,95182.0,0.12416812]
[1732557016811,0.0004,95183.0,95182.0,0.00013012]
[1732557017215,0.052938,95183.0,95182.0,0.00013012]
[1732557017402,0.223298,95183.0,95182.0,0.00013012]
[1732557017801,0.0004,95183.0,95182.0,0.05266812]
[1732557018511,0.3608,95224.0,95182.0,1.10109012]
[1732557018716,0.00157628,95226.0,95212.0,0.3608]
[1732557018913,0.00157628,95226.0,95212.0,0.53156]
[1732557019102,0.00157628,95226.0,95212.0,0.59836]
[1732557019818,0.0687,95241.0,95212.0,0.59836]
[1732557019819,0.052518,95220.0,95212.0,0.59836]